[Event "*** SCC Grand Prix: Titled Tuesday Blitz"]
[Site "Chess.com"]
[Date "2020.07.21"]
[Round "6"]
[White "Nf3c5"]
[Black "PowerThinking2650"]
[Result "1/2-1/2"]
[WhiteElo "2558"]
[BlackElo "2349"]
[TimeControl "180+1"]
[EndTime "11:08:39 PDT"]
[Termination "Game drawn - insufficient material"]

1. e4 {[%clk 0:03:00]} 1... e5 {[%clk 0:02:58.9]} 2. Bc4 {[%clk 0:02:59.2]} 2...
Nf6 {[%clk 0:02:57.9]} 3. d3 {[%clk 0:02:58.6]} 3... Nc6 {[%clk 0:02:52.9]} 4.
Nc3 {[%clk 0:02:58.3]} 4... Na5 {[%clk 0:02:50.8]} 5. Qf3 {[%clk 0:02:57.3]}
5... Nxc4 {[%clk 0:02:45.3]} 6. dxc4 {[%clk 0:02:58.2]} 6... d6 {[%clk
0:02:40.9]} 7. Nge2 {[%clk 0:02:56.5]} 7... Be6 {[%clk 0:02:38.4]} 8. b3 {[%clk
0:02:55.8]} 8... c6 {[%clk 0:02:32.2]} 9. O-O {[%clk 0:02:51.7]} 9... Be7 {[%clk
0:02:30.7]} 10. Rd1 {[%clk 0:02:48]} 10... Qc7 {[%clk 0:02:14.8]} 11. h3 {[%clk
0:02:47.8]} 11... O-O {[%clk 0:02:12.8]} 12. Ng3 {[%clk 0:02:47.4]} 12... a6
{[%clk 0:02:11.1]} 13. a4 {[%clk 0:02:45.4]} 13... Rfd8 {[%clk 0:02:02.5]} 14.
Nf5 {[%clk 0:02:41.8]} 14... Bxf5 {[%clk 0:01:53.1]} 15. exf5 {[%clk 0:02:28.8]}
15... d5 {[%clk 0:01:27.6]} 16. cxd5 {[%clk 0:02:21.9]} 16... cxd5 {[%clk
0:01:27]} 17. Nxd5 {[%clk 0:02:16.7]} 17... Nxd5 {[%clk 0:01:23.2]} 18. Rxd5
{[%clk 0:02:17.6]} 18... Rxd5 {[%clk 0:01:16.4]} 19. Qxd5 {[%clk 0:02:18.5]}
19... Rd8 {[%clk 0:01:06.6]} 20. Qc4 {[%clk 0:01:54.4]} 20... Rd1+ {[%clk
0:00:51.6]} 21. Kh2 {[%clk 0:01:53.6]} 21... Qxc4 {[%clk 0:00:20.2]} 22. bxc4
{[%clk 0:01:51.6]} 22... Bc5 {[%clk 0:00:16.8]} 23. Bb2 {[%clk 0:01:43.4]} 23...
Rd2 {[%clk 0:00:16.4]} 24. Bxe5 {[%clk 0:01:41.8]} 24... Rxf2 {[%clk 0:00:15.3]}
25. Rd1 {[%clk 0:01:29.9]} 25... h6 {[%clk 0:00:14.6]} 26. Rd5 {[%clk
0:01:24.2]} 26... b6 {[%clk 0:00:14.6]} 27. Bd4 {[%clk 0:00:59.5]} 27... Bxd4
{[%clk 0:00:11.9]} 28. Rxd4 {[%clk 0:01:00.4]} 28... Rxf5 {[%clk 0:00:10.3]} 29.
Rd6 {[%clk 0:01:00.6]} 29... Rc5 {[%clk 0:00:09.2]} 30. Rxb6 {[%clk 0:00:47.9]}
30... Rxc4 {[%clk 0:00:09.5]} 31. Rxa6 {[%clk 0:00:48.7]} 31... Rxc2 {[%clk
0:00:09.7]} 32. Ra7 {[%clk 0:00:49.2]} 32... f5 {[%clk 0:00:08.8]} 33. a5 {[%clk
0:00:49.2]} 33... Kh7 {[%clk 0:00:08.7]} 34. Kg3 {[%clk 0:00:47.2]} 34... Kg6
{[%clk 0:00:06.3]} 35. a6 {[%clk 0:00:47.2]} 35... Ra2 {[%clk 0:00:04.5]} 36.
Kf3 {[%clk 0:00:47.4]} 36... Kf6 {[%clk 0:00:03.5]} 37. Ra8 {[%clk 0:00:46.6]}
37... Ra3+ {[%clk 0:00:03.5]} 38. Ke2 {[%clk 0:00:45.1]} 38... Kg5 {[%clk
0:00:02.1]} 39. Kd2 {[%clk 0:00:29.5]} 39... g6 {[%clk 0:00:02.5]} 40. Kc2
{[%clk 0:00:29]} 40... Ra1 {[%clk 0:00:02.1]} 41. Kb2 {[%clk 0:00:28.6]} 41...
Ra5 {[%clk 0:00:02.1]} 42. Kb3 {[%clk 0:00:28.9]} 42... Kf4 {[%clk 0:00:02.3]}
43. Kb4 {[%clk 0:00:29.4]} 43... Ra1 {[%clk 0:00:01.7]} 44. Kb5 {[%clk
0:00:30.3]} 44... g5 {[%clk 0:00:02.2]} 45. Rf8 {[%clk 0:00:27]} 45... Rb1+
{[%clk 0:00:02.1]} 46. Kc6 {[%clk 0:00:27.4]} 46... Rc1+ {[%clk 0:00:02.1]} 47.
Kb7 {[%clk 0:00:27.7]} 47... Rb1+ {[%clk 0:00:02.3]} 48. Ka8 {[%clk 0:00:28]}
48... h5 {[%clk 0:00:02.1]} 49. a7 {[%clk 0:00:27.9]} 49... g4 {[%clk
0:00:02.5]} 50. hxg4 {[%clk 0:00:28.1]} 50... hxg4 {[%clk 0:00:02.5]} 51. Rb8
{[%clk 0:00:29]} 51... Ra1 {[%clk 0:00:02]} 52. Kb7 {[%clk 0:00:29.5]} 52... Kg3
{[%clk 0:00:01.9]} 53. Rf8 {[%clk 0:00:23.7]} 53... Rxa7+ {[%clk 0:00:02]} 54.
Kxa7 {[%clk 0:00:23.6]} 54... f4 {[%clk 0:00:02.9]} 55. Rg8 {[%clk 0:00:22]}
55... f3 {[%clk 0:00:03.8]} 56. gxf3 {[%clk 0:00:21.7]} 56... Kxf3 {[%clk
0:00:04.3]} 57. Rf8+ {[%clk 0:00:22.4]} 57... Kg2 {[%clk 0:00:04.1]} 58. Kb6
{[%clk 0:00:22.5]} 58... g3 {[%clk 0:00:04.5]} 59. Kc5 {[%clk 0:00:23.4]} 59...
Kh2 {[%clk 0:00:04.9]} 60. Rh8+ {[%clk 0:00:23.9]} 60... Kg1 {[%clk 0:00:04.4]}
61. Kd4 {[%clk 0:00:24.4]} 61... g2 {[%clk 0:00:03.7]} 62. Ke3 {[%clk
0:00:24.3]} 62... Kf1 {[%clk 0:00:04.1]} 63. Rf8+ {[%clk 0:00:24.6]} 63... Ke1
{[%clk 0:00:04.1]} 64. Rg8 {[%clk 0:00:23.7]} 64... Kf1 {[%clk 0:00:04.3]} 65.
Rf8+ {[%clk 0:00:19.1]} 65... Ke1 {[%clk 0:00:04.4]} 66. Rg8 {[%clk 0:00:13.5]}
66... Kf1 {[%clk 0:00:04.3]} 67. Kf3 {[%clk 0:00:08.2]} 67... g1=Q {[%clk
0:00:04.1]} 68. Rxg1+ {[%clk 0:00:05.9]} 68... Kxg1 {[%clk 0:00:05]} 1/2-1/2

[Event "*** SCC Grand Prix: Titled Tuesday Blitz"]
[Site "Chess.com"]
[Date "2020.07.21"]
[Round "6"]
[White "ajdemipopushi"]
[Black "White_Ghost"]
[Result "1-0"]
[WhiteElo "2351"]
[BlackElo "2518"]
[TimeControl "180+1"]
[EndTime "11:08:43 PDT"]
[Termination "ajdemipopushi won by checkmate"]

1. Nf3 {[%clk 0:03:00.9]} 1... d5 {[%clk 0:02:59.3]} 2. g3 {[%clk 0:03:01.2]}
2... Bg4 {[%clk 0:02:58.7]} 3. Bg2 {[%clk 0:03:01]} 3... Nf6 {[%clk 0:02:58.2]}
4. c4 {[%clk 0:03:00]} 4... c6 {[%clk 0:02:57.9]} 5. Ne5 {[%clk 0:02:55.3]} 5...
Bf5 {[%clk 0:02:55.9]} 6. cxd5 {[%clk 0:02:54.3]} 6... cxd5 {[%clk 0:02:55.6]}
7. Nc3 {[%clk 0:02:54.4]} 7... Nc6 {[%clk 0:02:51.9]} 8. Qa4 {[%clk 0:02:50.2]}
8... Qc7 {[%clk 0:02:51.4]} 9. d4 {[%clk 0:02:28.1]} 9... Bd7 {[%clk 0:02:44.1]}
10. Nxd7 {[%clk 0:02:20.6]} 10... Qxd7 {[%clk 0:02:41.4]} 11. Bg5 {[%clk
0:02:05.7]} 11... e6 {[%clk 0:02:39.5]} 12. Bxf6 {[%clk 0:02:04.9]} 12... gxf6
{[%clk 0:02:40.4]} 13. O-O {[%clk 0:02:04.1]} 13... f5 {[%clk 0:02:33]} 14. e3
{[%clk 0:02:02.9]} 14... h5 {[%clk 0:02:27.1]} 15. h4 {[%clk 0:02:02.4]} 15...
Be7 {[%clk 0:02:24.6]} 16. Rfc1 {[%clk 0:02:00.3]} 16... O-O {[%clk 0:02:23.5]}
17. Ne2 {[%clk 0:01:56.4]} 17... Bd6 {[%clk 0:02:21.9]} 18. a3 {[%clk
0:01:52.2]} 18... Rfc8 {[%clk 0:02:08.5]} 19. Rc2 {[%clk 0:01:49.6]} 19... a6
{[%clk 0:02:03.5]} 20. Rac1 {[%clk 0:01:44.5]} 20... b5 {[%clk 0:02:01.8]} 21.
Qb3 {[%clk 0:01:44.3]} 21... Na5 {[%clk 0:02:01.6]} 22. Qd3 {[%clk 0:01:42]}
22... Nc4 {[%clk 0:01:58.4]} 23. Bf3 {[%clk 0:01:34.6]} 23... Ra7 {[%clk
0:01:47.2]} 24. Bxh5 {[%clk 0:01:27.9]} 24... Rac7 {[%clk 0:01:45.7]} 25. Qd1
{[%clk 0:01:19.9]} 25... a5 {[%clk 0:01:24.4]} 26. Bf3 {[%clk 0:01:16.1]} 26...
b4 {[%clk 0:01:11.1]} 27. axb4 {[%clk 0:01:11.7]} 27... axb4 {[%clk 0:01:12]}
28. b3 {[%clk 0:01:11.4]} 28... Na5 {[%clk 0:01:09.5]} 29. Rxc7 {[%clk 0:01:02]}
29... Rxc7 {[%clk 0:01:10.4]} 30. Rxc7 {[%clk 0:01:01.8]} 30... Qxc7 {[%clk
0:01:09]} 31. Nc1 {[%clk 0:01:02.2]} 31... Qc3 {[%clk 0:01:07.6]} 32. Kg2 {[%clk
0:01:01.4]} 32... Be7 {[%clk 0:01:00.2]} 33. Be2 {[%clk 0:01:00.3]} 33... Bf6
{[%clk 0:00:57.5]} 34. Bb5 {[%clk 0:00:59.1]} 34... Qb2 {[%clk 0:00:51.3]} 35.
Ba4 {[%clk 0:00:54.5]} 35... Nb7 {[%clk 0:00:36.8]} 36. Nd3 {[%clk 0:00:52.6]}
36... Qc3 {[%clk 0:00:36.2]} 37. Nf4 {[%clk 0:00:50.4]} 37... Nd6 {[%clk
0:00:34.3]} 38. Qh5 {[%clk 0:00:39.4]} 38... Ne4 {[%clk 0:00:29.3]} 39. Be8
{[%clk 0:00:35.3]} 39... Qc7 {[%clk 0:00:22.2]} 40. g4 {[%clk 0:00:24]} 40...
Kf8 {[%clk 0:00:21.8]} 41. Bb5 {[%clk 0:00:21.9]} 41... fxg4 {[%clk 0:00:21.3]}
42. Qxg4 {[%clk 0:00:21.5]} 42... Qc2 {[%clk 0:00:19.7]} 43. Qf3 {[%clk
0:00:14.7]} 43... Qxb3 {[%clk 0:00:19.1]} 44. h5 {[%clk 0:00:13.4]} 44... Ng5
{[%clk 0:00:15.7]} 45. Qg4 {[%clk 0:00:10.5]} 45... Qc2 {[%clk 0:00:15]} 46. Bd3
{[%clk 0:00:08.5]} 46... Qd2 {[%clk 0:00:13.6]} 47. h6 {[%clk 0:00:08]} 47... b3
{[%clk 0:00:12]} 48. h7 {[%clk 0:00:07.2]} 48... Ke7 {[%clk 0:00:12.1]} 49. h8=Q
{[%clk 0:00:07.1]} 49... Bxh8 {[%clk 0:00:11.8]} 50. Qxg5+ {[%clk 0:00:07.5]}
50... Bf6 {[%clk 0:00:12.7]} 51. Qg4 {[%clk 0:00:07]} 51... b2 {[%clk
0:00:13.1]} 52. Qe2 {[%clk 0:00:06.6]} 52... Qc1 {[%clk 0:00:12.1]} 53. Qc2
{[%clk 0:00:06.3]} 53... Qa1 {[%clk 0:00:11.8]} 54. Qb3 {[%clk 0:00:06]} 54...
Bg5 {[%clk 0:00:11.7]} 55. Nh3 {[%clk 0:00:05.2]} 55... Bf6 {[%clk 0:00:11.5]}
56. Qb4+ {[%clk 0:00:05.5]} 56... Ke8 {[%clk 0:00:11.3]} 57. Bb5+ {[%clk
0:00:05.8]} 57... Kd8 {[%clk 0:00:11.7]} 58. Qd6+ {[%clk 0:00:06]} 58... Kc8
{[%clk 0:00:12.2]} 59. Qc6+ {[%clk 0:00:06.1]} 59... Kb8 {[%clk 0:00:11.8]} 60.
Qb6+ {[%clk 0:00:06.6]} 60... Kc8 {[%clk 0:00:12.1]} 61. Qc6+ {[%clk 0:00:06.6]}
61... Kb8 {[%clk 0:00:12.4]} 62. Qb6+ {[%clk 0:00:07]} 62... Kc8 {[%clk
0:00:12.2]} 63. Ba6+ {[%clk 0:00:07.7]} 63... Qxa6 {[%clk 0:00:11.4]} 64. Qxa6+
{[%clk 0:00:07.3]} 64... Kd7 {[%clk 0:00:11.9]} 65. Qb5+ {[%clk 0:00:07.8]}
65... Ke7 {[%clk 0:00:12.4]} 66. Qxb2 {[%clk 0:00:08.4]} 66... Kf8 {[%clk
0:00:12.8]} 67. Qb7 {[%clk 0:00:09.3]} 67... Kg7 {[%clk 0:00:13.7]} 68. Nf4
{[%clk 0:00:09.6]} 68... e5 {[%clk 0:00:14]} 69. Ne6+ {[%clk 0:00:09.5]} 69...
Kg6 {[%clk 0:00:13.1]} 70. dxe5 {[%clk 0:00:09.8]} 70... Bxe5 {[%clk 0:00:13.5]}
71. Nf4+ {[%clk 0:00:10.1]} 71... Bxf4 {[%clk 0:00:14]} 72. exf4 {[%clk
0:00:10.3]} 72... f6 {[%clk 0:00:14.4]} 73. Qxd5 {[%clk 0:00:09.9]} 73... f5
{[%clk 0:00:14.4]} 74. Kf3 {[%clk 0:00:09.8]} 74... Kh5 {[%clk 0:00:14.7]} 75.
Qxf5+ {[%clk 0:00:09.5]} 75... Kh6 {[%clk 0:00:15.2]} 76. Qg5+ {[%clk
0:00:09.7]} 76... Kh7 {[%clk 0:00:16.1]} 77. Kg4 {[%clk 0:00:09.4]} 77... Kh8
{[%clk 0:00:17]} 78. Kf5 {[%clk 0:00:09.8]} 78... Kh7 {[%clk 0:00:17.9]} 79. Kf6
{[%clk 0:00:10.3]} 79... Kh8 {[%clk 0:00:18.8]} 80. Qg7# {[%clk 0:00:10.6]} 1-0

[Event "*** SCC Grand Prix: Titled Tuesday Blitz"]
[Site "Chess.com"]
[Date "2020.07.21"]
[Round "6"]
[White "wonderfultime"]
[Black "Semen_Khanin"]
[Result "0-1"]
[WhiteElo "2958"]
[BlackElo "2748"]
[TimeControl "180+1"]
[EndTime "11:08:52 PDT"]
[Termination "Semen_Khanin won on time"]

1. d4 {[%clk 0:03:00.9]} 1... Nf6 {[%clk 0:02:59.6]} 2. Nf3 {[%clk 0:03:01.1]}
2... g6 {[%clk 0:02:59.9]} 3. Bg5 {[%clk 0:03:01.2]} 3... Bg7 {[%clk 0:03:00.1]}
4. Nbd2 {[%clk 0:03:01.6]} 4... d6 {[%clk 0:02:57.9]} 5. c3 {[%clk 0:03:01.8]}
5... h6 {[%clk 0:02:57.9]} 6. Bh4 {[%clk 0:03:01.2]} 6... c5 {[%clk 0:02:58.1]}
7. e3 {[%clk 0:02:59.3]} 7... O-O {[%clk 0:02:57.6]} 8. Bd3 {[%clk 0:02:59]}
8... Nc6 {[%clk 0:02:57.5]} 9. O-O {[%clk 0:02:59.3]} 9... Nh5 {[%clk
0:02:56.6]} 10. Qe2 {[%clk 0:02:52.7]} 10... cxd4 {[%clk 0:02:53.9]} 11. cxd4
{[%clk 0:02:51.7]} 11... Nb4 {[%clk 0:02:29.5]} 12. Bc4 {[%clk 0:02:44.6]} 12...
d5 {[%clk 0:02:26.9]} 13. Bb3 {[%clk 0:02:41.5]} 13... g5 {[%clk 0:02:23.9]} 14.
Bg3 {[%clk 0:02:39.5]} 14... Nxg3 {[%clk 0:02:24.2]} 15. hxg3 {[%clk 0:02:40.4]}
15... Bf5 {[%clk 0:02:24.2]} 16. Rfc1 {[%clk 0:02:15.7]} 16... e6 {[%clk
0:02:19.4]} 17. a3 {[%clk 0:02:04.3]} 17... Bd3 {[%clk 0:02:13.6]} 18. Qd1
{[%clk 0:02:02.1]} 18... Nc6 {[%clk 0:02:13.5]} 19. Rc3 {[%clk 0:02:00.6]} 19...
Bg6 {[%clk 0:02:09.7]} 20. Rac1 {[%clk 0:02:00.9]} 20... Qd6 {[%clk 0:02:09.4]}
21. Ba4 {[%clk 0:01:58.7]} 21... Ne7 {[%clk 0:02:07.6]} 22. Bc2 {[%clk
0:01:56.7]} 22... Bxc2 {[%clk 0:01:50.6]} 23. Qxc2 {[%clk 0:01:57.6]} 23... Rac8
{[%clk 0:01:50.5]} 24. Qb3 {[%clk 0:01:53.8]} 24... Qd7 {[%clk 0:01:44.5]} 25.
Ne1 {[%clk 0:01:47.8]} 25... Nf5 {[%clk 0:01:40.2]} 26. Nd3 {[%clk 0:01:42.7]}
26... b6 {[%clk 0:01:40.5]} 27. Nf3 {[%clk 0:01:40.6]} 27... f6 {[%clk
0:01:31.4]} 28. Qc2 {[%clk 0:01:37]} 28... Nd6 {[%clk 0:01:30.5]} 29. Rc7 {[%clk
0:01:22]} 29... Rxc7 {[%clk 0:01:30.3]} 30. Qxc7 {[%clk 0:01:22.9]} 30... Qxc7
{[%clk 0:01:27.2]} 31. Rxc7 {[%clk 0:01:22.6]} 31... Rf7 {[%clk 0:01:27.6]} 32.
Rc6 {[%clk 0:01:20.8]} 32... Rd7 {[%clk 0:01:27.7]} 33. Nd2 {[%clk 0:01:10.6]}
33... Kf7 {[%clk 0:01:27.4]} 34. Nb4 {[%clk 0:01:07]} 34... Bf8 {[%clk 0:01:21]}
35. Kf1 {[%clk 0:01:05.4]} 35... Ke8 {[%clk 0:01:14.3]} 36. Ke2 {[%clk 0:01:05]}
36... Rd8 {[%clk 0:01:14.5]} 37. Rc7 {[%clk 0:01:03.6]} 37... Rd7 {[%clk
0:01:14.8]} 38. Rc1 {[%clk 0:01:03.5]} 38... Rd8 {[%clk 0:01:12]} 39. Na2 {[%clk
0:00:47.5]} 39... Rc8 {[%clk 0:01:08.5]} 40. Nc3 {[%clk 0:00:48]} 40... Kf7
{[%clk 0:01:01.2]} 41. Kd3 {[%clk 0:00:46.9]} 41... h5 {[%clk 0:01:01.5]} 42.
Rh1 {[%clk 0:00:46.6]} 42... Kg6 {[%clk 0:01:01.7]} 43. f3 {[%clk 0:00:42.7]}
43... Nf5 {[%clk 0:00:43.3]} 44. Ne2 {[%clk 0:00:37.3]} 44... Bd6 {[%clk
0:00:43.2]} 45. f4 {[%clk 0:00:32.4]} 45... g4 {[%clk 0:00:38]} 46. Nb1 {[%clk
0:00:24.7]} 46... Rh8 {[%clk 0:00:31]} 47. Nbc3 {[%clk 0:00:24.5]} 47... h4
{[%clk 0:00:30.9]} 48. gxh4 {[%clk 0:00:24.9]} 48... Rxh4 {[%clk 0:00:29.4]} 49.
Rg1 {[%clk 0:00:24.4]} 49... g3 {[%clk 0:00:28.5]} 50. Nb1 {[%clk 0:00:17.8]}
50... e5 {[%clk 0:00:15.4]} 51. fxe5 {[%clk 0:00:17.4]} 51... fxe5 {[%clk
0:00:15.6]} 52. dxe5 {[%clk 0:00:18]} 52... Bxe5 {[%clk 0:00:15.4]} 53. Nd2
{[%clk 0:00:18.9]} 53... Bxb2 {[%clk 0:00:14.1]} 54. Nf3 {[%clk 0:00:18.3]}
54... Ra4 {[%clk 0:00:14.1]} 55. Nf4+ {[%clk 0:00:17.3]} 55... Kf7 {[%clk
0:00:13.1]} 56. Nxd5 {[%clk 0:00:17.3]} 56... Bxa3 {[%clk 0:00:10.2]} 57. Rh1
{[%clk 0:00:13.7]} 57... Bc5 {[%clk 0:00:08.9]} 58. e4 {[%clk 0:00:10.6]} 58...
Ra3+ {[%clk 0:00:08.9]} 59. Kd2 {[%clk 0:00:07.2]} 59... Nd6 {[%clk 0:00:08.6]}
60. e5 {[%clk 0:00:06.5]} 60... Ne4+ {[%clk 0:00:08.6]} 61. Kc2 {[%clk
0:00:06.5]} 61... Ke6 {[%clk 0:00:07.4]} 62. Nf4+ {[%clk 0:00:06.6]} 62... Kf5
{[%clk 0:00:07.8]} 63. Nd5 {[%clk 0:00:06.9]} 63... Ra2+ {[%clk 0:00:07.5]} 64.
Kd3 {[%clk 0:00:07.4]} 64... Rxg2 {[%clk 0:00:07.6]} 65. Nh4+ {[%clk 0:00:06.8]}
65... Kxe5 {[%clk 0:00:07.4]} 66. Kc4 {[%clk 0:00:02.5]} 66... Rc2+ {[%clk
0:00:06.4]} 67. Kb3 {[%clk 0:00:03]} 67... Rd2 {[%clk 0:00:05.2]} 68. Nf3+
{[%clk 0:00:01.8]} 68... Kxd5 {[%clk 0:00:04.4]} 69. Nxd2 {[%clk 0:00:02.3]}
69... Nxd2+ {[%clk 0:00:04.7]} 70. Kc2 {[%clk 0:00:03.2]} 70... Ne4 {[%clk
0:00:04.6]} 71. Rh5+ {[%clk 0:00:03]} 71... Kd4 {[%clk 0:00:05]} 72. Rh4 {[%clk
0:00:03.3]} 72... Ke3 {[%clk 0:00:05.2]} 73. Kd1 {[%clk 0:00:02.4]} 73... g2
{[%clk 0:00:05.2]} 0-1

[Event "*** SCC Grand Prix: Titled Tuesday Blitz"]
[Site "Chess.com"]
[Date "2020.07.21"]
[Round "6"]
[White "Azatic"]
[Black "ErikRonka"]
[Result "0-1"]
[WhiteElo "2530"]
[BlackElo "2383"]
[TimeControl "180+1"]
[EndTime "11:08:53 PDT"]
[Termination "ErikRonka won by resignation"]

1. e4 {[%clk 0:03:00.9]} 1... c6 {[%clk 0:03:00]} 2. d4 {[%clk 0:03:00.8]} 2...
d5 {[%clk 0:03:00.9]} 3. e5 {[%clk 0:03:00.9]} 3... c5 {[%clk 0:03:01.1]} 4.
dxc5 {[%clk 0:03:00.9]} 4... e6 {[%clk 0:03:01.2]} 5. Nf3 {[%clk 0:03:00.9]}
5... Nc6 {[%clk 0:02:59.7]} 6. Bd3 {[%clk 0:02:59.1]} 6... Bxc5 {[%clk
0:02:58.9]} 7. c3 {[%clk 0:02:55.9]} 7... f6 {[%clk 0:02:56.3]} 8. Qe2 {[%clk
0:02:42.2]} 8... fxe5 {[%clk 0:02:49.4]} 9. Nxe5 {[%clk 0:02:42.3]} 9... Nxe5
{[%clk 0:02:45.4]} 10. Qxe5 {[%clk 0:02:43.2]} 10... Nf6 {[%clk 0:02:43.9]} 11.
O-O {[%clk 0:02:34]} 11... O-O {[%clk 0:02:41.6]} 12. Bg5 {[%clk 0:02:29]} 12...
Bd6 {[%clk 0:02:27]} 13. Qe2 {[%clk 0:02:23.2]} 13... e5 {[%clk 0:02:19.3]} 14.
Nd2 {[%clk 0:02:18.2]} 14... Qc7 {[%clk 0:01:50.6]} 15. h3 {[%clk 0:02:11.9]}
15... e4 {[%clk 0:00:56.8]} 16. Bc2 {[%clk 0:02:07.5]} 16... Bf5 {[%clk
0:00:57.3]} 17. c4 {[%clk 0:01:48.8]} 17... Rae8 {[%clk 0:00:56.8]} 18. cxd5
{[%clk 0:01:42.7]} 18... Qxc2 {[%clk 0:00:55.1]} 19. Qb5 {[%clk 0:01:30.2]}
19... Qc7 {[%clk 0:00:45.6]} 20. Rac1 {[%clk 0:01:27.1]} 20... Qd7 {[%clk
0:00:44.8]} 21. Qb3 {[%clk 0:01:27]} 21... Rc8 {[%clk 0:00:39.3]} 22. Nc4 {[%clk
0:01:20.3]} 22... b6 {[%clk 0:00:36]} 23. Ne3 {[%clk 0:01:12.4]} 23... Bg6
{[%clk 0:00:35.4]} 24. Rc6 {[%clk 0:01:09.8]} 24... Rxc6 {[%clk 0:00:24.8]} 25.
dxc6+ {[%clk 0:01:10.7]} 25... Qf7 {[%clk 0:00:25.2]} 26. Qa4 {[%clk 0:01:03.9]}
26... Rc8 {[%clk 0:00:23]} 27. Rd1 {[%clk 0:01:02.2]} 27... Bc5 {[%clk
0:00:21.4]} 28. Kh1 {[%clk 0:00:54.6]} 28... h6 {[%clk 0:00:14.8]} 29. Bxf6
{[%clk 0:00:21.8]} 29... Qxf6 {[%clk 0:00:15]} 30. Nd5 {[%clk 0:00:22.7]} 30...
Qxc6 {[%clk 0:00:14.3]} 31. Qc4 {[%clk 0:00:23.3]} 31... Kh7 {[%clk 0:00:13.3]}
32. Nf4 {[%clk 0:00:17.7]} 32... Bxf2 {[%clk 0:00:10.6]} 33. Qe2 {[%clk
0:00:17.4]} 33... Bg3 {[%clk 0:00:09]} 34. Qg4 {[%clk 0:00:09.4]} 34... Bxf4
{[%clk 0:00:08.5]} 35. Qxf4 {[%clk 0:00:10.3]} 35... Qf6 {[%clk 0:00:06.9]} 36.
Qe3 {[%clk 0:00:10]} 36... Rf8 {[%clk 0:00:06.6]} 37. b4 {[%clk 0:00:09.3]}
37... Qf4 {[%clk 0:00:06.7]} 38. Qc3 {[%clk 0:00:09]} 38... e3 {[%clk
0:00:07.1]} 39. Rd7 {[%clk 0:00:08.6]} 39... Rf7 {[%clk 0:00:06.3]} 40. Rd8
{[%clk 0:00:08.4]} 40... e2 {[%clk 0:00:06.2]} 41. Re8 {[%clk 0:00:08.3]} 41...
Qf1+ {[%clk 0:00:05.9]} 42. Kh2 {[%clk 0:00:08.9]} 42... Qf4+ {[%clk 0:00:06.4]}
43. Kg1 {[%clk 0:00:08.6]} 43... Qf6 {[%clk 0:00:04.7]} 44. Qxf6 {[%clk
0:00:05.3]} 44... Rxf6 {[%clk 0:00:04.8]} 45. Rxe2 {[%clk 0:00:06.2]} 45... Rf4
{[%clk 0:00:05]} 46. a3 {[%clk 0:00:06.5]} 46... Rc4 {[%clk 0:00:05.4]} 47. Re7
{[%clk 0:00:06.5]} 47... a5 {[%clk 0:00:05.8]} 48. bxa5 {[%clk 0:00:06]} 48...
bxa5 {[%clk 0:00:06.7]} 49. Re3 {[%clk 0:00:06.3]} 49... Ra4 {[%clk 0:00:06.8]}
50. Kf2 {[%clk 0:00:06.8]} 50... Bf5 {[%clk 0:00:07]} 51. Rc3 {[%clk 0:00:07.3]}
51... g5 {[%clk 0:00:07.1]} 52. g4 {[%clk 0:00:07.1]} 52... Be6 {[%clk
0:00:07.1]} 53. Ke3 {[%clk 0:00:07.4]} 53... Kg6 {[%clk 0:00:07]} 54. Kf3 {[%clk
0:00:07.5]} 54... Kf6 {[%clk 0:00:07.2]} 55. Ke3 {[%clk 0:00:07.9]} 55... Rc4
{[%clk 0:00:06.7]} 56. Rd3 {[%clk 0:00:07.5]} 56... a4 {[%clk 0:00:06.8]} 57.
Kf2 {[%clk 0:00:07.1]} 57... Rc1 {[%clk 0:00:06.7]} 58. Rf3+ {[%clk 0:00:06.8]}
58... Ke7 {[%clk 0:00:06.1]} 59. Rc3 {[%clk 0:00:06]} 59... Rb1 {[%clk
0:00:06.2]} 60. Rc7+ {[%clk 0:00:05.6]} 60... Kf6 {[%clk 0:00:06.3]} 61. Ra7
{[%clk 0:00:05.9]} 61... Bb3 {[%clk 0:00:04.6]} 62. Ra6+ {[%clk 0:00:06.2]}
62... Kg7 {[%clk 0:00:04]} 63. Ke3 {[%clk 0:00:06.4]} 63... Ra1 {[%clk
0:00:03.3]} 64. Ke4 {[%clk 0:00:05.6]} 64... Rxa3 {[%clk 0:00:03.5]} 65. Ke5
{[%clk 0:00:06.1]} 65... Ra1 {[%clk 0:00:03.2]} 66. h4 {[%clk 0:00:03.3]} 66...
Bf7 {[%clk 0:00:03.6]} 67. Kf5 {[%clk 0:00:04]} 67... Rf1+ {[%clk 0:00:02.3]}
68. Ke4 {[%clk 0:00:04.1]} 68... gxh4 {[%clk 0:00:03.2]} 69. Ke3 {[%clk
0:00:03.8]} 69... h3 {[%clk 0:00:03.6]} 70. Ke2 {[%clk 0:00:04.7]} 70... h2
{[%clk 0:00:03.9]} 71. Kxf1 {[%clk 0:00:04.3]} 71... h1=Q+ {[%clk 0:00:04.8]}
72. Kf2 {[%clk 0:00:05.2]} 72... Qb7 {[%clk 0:00:04.9]} 73. Ke3 {[%clk
0:00:06.1]} 73... Qb2 {[%clk 0:00:05.2]} 74. g5 {[%clk 0:00:07]} 74... a3 {[%clk
0:00:06.1]} 75. gxh6+ {[%clk 0:00:07.9]} 75... Kh7 {[%clk 0:00:06.1]} 76. Kf4
{[%clk 0:00:08.8]} 76... Qb3 {[%clk 0:00:06.4]} 77. Ra7 {[%clk 0:00:09.7]} 77...
Qb4+ {[%clk 0:00:06.4]} 78. Kg5 {[%clk 0:00:09.8]} 78... Qc5+ {[%clk 0:00:06.9]}
79. Kf6 {[%clk 0:00:10.3]} 79... Qxa7 {[%clk 0:00:07.8]} 80. Ke5 {[%clk
0:00:10.1]} 80... a2 {[%clk 0:00:08.7]} 81. Kf6 {[%clk 0:00:11]} 81... a1=Q+
{[%clk 0:00:08.6]} 82. Kg5 {[%clk 0:00:11.9]} 82... Qe5+ {[%clk 0:00:07.6]} 83.
Kh4 {[%clk 0:00:11.1]} 83... Qad4+ {[%clk 0:00:07.7]} 0-1